fUST/lending_fUST_20241012
["ID","MTS","AMOUNT","RATE_DAILY","PERIOD"]
[340155021,1728696696311,10000.0,0.00042,2]
[340155022,1728696704397,10000.0,0.00042,2]
[340155023,1728696709520,10000.0,0.00042,2]
[340155024,1728696714893,10000.0,0.00042,2]
[340155025,1728696716883,161.882352,0.00044658,2]
[340155026,1728696717124,161.882352,0.00050428,2]
[340155027,1728696721668,978.09652068,0.00042,2]
[340155028,1728696721699,9021.90347932,0.00042,2]
[340155029,1728696732481,9789.0,0.00042,2]
[340155030,1728696734773,1997.5,0.00042,2]
[340155068,1728697105225,172.801725,0.00040597,2]
[340155069,1728697179361,383.00977477,0.00040394,8]
[340155070,1728697190695,199.704905,0.00041148,2]
[340155071,1728697190909,199.704905,0.0004126,2]
[340155072,1728697191122,199.704905,0.00041373,2]
[340155073,1728697191388,199.704905,0.00041486,2]
[340155074,1728697191642,199.704905,0.00041599,2]
[340155075,1728697191872,199.704905,0.00041712,2]
[340155076,1728697192087,199.704905,0.00041825,2]
[340155077,1728697192311,199.704905,0.00041938,2]
[340155078,1728697196464,157.98421,0.00041071,2]
[340155079,1728697196690,157.98421,0.00041089,2]
[340155080,1728697196894,157.98421,0.00041106,2]
[340155081,1728697197116,157.98421,0.00041123,2]
[340155082,1728697197414,157.98421,0.0004114,2]
[340155083,1728697197646,157.98421,0.00041157,2]
[340155084,1728697197886,157.98421,0.00041174,2]
[340155085,1728697198071,157.98421,0.00041191,2]
[340155086,1728697198293,157.98421,0.00041208,2]
[340155087,1728697198701,157.98421,0.00041226,2]
[340155088,1728697198957,157.98421,0.00041243,2]
[340155089,1728697199174,157.98421,0.0004126,2]
[340155090,1728697199536,157.98421,0.00041277,2]
[340155100,1728697615195,170.987689,0.000411,2]
[340155101,1728697625122,-199.704905,0.0004205,2]
[340155102,1728697625147,-20.13644873,0.00042163,2]
[340155103,1728697625185,-179.56845627,0.00042163,2]
[340155104,1728697625209,-199.704905,0.00042276,2]
[340155105,1728697625232,-199.704905,0.00042389,2]
[340155106,1728697625254,-139.87545297,0.00042502,2]
[340155107,1728697628110,-59.82945203,0.00042502,2]
[340155108,1728697628135,-199.704905,0.00042615,2]
[340155109,1728697628158,-199.704905,0.00042727,2]
[340155110,1728697628180,-226.24030447,0.00042739,2]
[340155111,1728697628204,-550.0,0.00042739,30]
[340155112,1728697628226,-550.0,0.00042739,5]
[340155113,1728697628249,-7162.58599592,0.0004274,120]
[340155114,1728697630194,-3576.76248006,0.0004274,120]
[340155115,1728697630217,-338.0,0.000428,2]
[340155116,1728697630239,-199.704905,0.0004284,2]
[340155117,1728697630260,-199.704905,0.00042953,2]
[340155118,1728697630281,-199.704905,0.00043066,2]
[340155119,1728697630305,-199.704905,0.00043179,2]
[340155120,1728697630328,-199.704905,0.00043292,2]
[340155121,1728697630354,-500.0,0.000444,2]
[340155122,1728697630381,-500.0,0.000444,10]
[340155123,1728697630404,-278.588236,0.00044658,2]
[340155124,1728697630425,-347.0,0.00045458,5]
[340155125,1728697630444,-1002.00189761,0.0004577,2]
[340155126,1728697630469,-400.54713022,0.0004577,10]
[340155127,1728697630491,-180.0,0.00047,90]
[340155128,1728697630514,-770.0,0.00047013,30]
[340155129,1728697630535,-180.0,0.00048904,90]
[340155130,1728697630558,-169.0574905,0.00048974,2]
[340155131,1728697630580,-2607.89496479,0.0004903,120]
[340155132,1728697639100,-269.01850662,0.0004903,120]
[340155133,1728697639183,-450.0,0.0004903,120]
[340155138,1728697652091,-204.79,0.00049315,86]
[340155139,1728697652111,-501.13994998,0.000494,10]
[340155140,1728697652133,-3929.76897904,0.00049417,28]
[340155141,1728697652154,-24900.0,0.00049508,2]
[340155142,1728697652177,-278.588236,0.00049517,2]
[340155143,1728697652198,-16080.53434791,0.0005,30]
[340155144,1728697652220,-209.89436865,0.0005095,120]
[340155145,1728697652240,-170.4625,0.00052054,120]
[340155146,1728697652261,-278.588236,0.00054376,2]
[340155147,1728697652283,-340.925,0.00054794,120]
[340155148,1728697652304,-300.0,0.00055,30]
[340155149,1728697652324,-500.0,0.00055318,120]
[340155150,1728697652346,-500.0,0.00055318,120]
[340155151,1728697652367,-500.0,0.00055318,120]
[340155152,1728697652386,-510.76995552,0.00055318,120]
[340155153,1728697652406,-289.15597042,0.00055318,120]
[340155154,1728697652427,-500.0,0.00055318,120]
[340155155,1728697652447,-500.0,0.00055318,120]
[340155156,1728697652470,-500.0,0.00055318,120]
[340155157,1728697652489,-500.0,0.00055318,120]
[340155158,1728697652510,-500.0,0.00055318,120]
[340155159,1728697652531,-500.0,0.00055318,120]
[340155160,1728697652553,-500.0,0.00055318,120]
[340155161,1728697652576,-500.0,0.00055318,120]
[340155162,1728697652597,-500.0,0.00055318,120]
[340155163,1728697652619,-500.0,0.00055318,120]
[340155164,1728697652645,-500.0,0.00055318,120]
[340155165,1728697652669,-500.0,0.00055318,120]
[340155166,1728697652695,-500.0,0.00055318,120]
[340155167,1728697652717,-500.0,0.00055318,120]
[340155168,1728697652738,-500.0,0.00055318,120]
[340155169,1728697652758,-500.0,0.00055318,120]
[340155170,1728697652779,-500.0,0.00055318,120]
[340155171,1728697652800,-500.0,0.00055318,120]
[340155172,1728697652821,-500.0,0.00055318,120]
[340155173,1728697652844,-500.0,0.00055318,120]
[340155174,1728697652865,-500.0,0.00055318,120]
[340155175,1728697652886,-500.0,0.00055318,120]
[340155176,1728697652907,-500.0,0.00055318,120]
[340155177,1728697652928,-500.0,0.00055318,120]
[340155178,1728697652950,-500.0,0.00055318,120]
[340155179,1728697652972,-500.0,0.00055318,120]
[340155180,1728697652992,-572.05376111,0.00055318,120]
[340155181,1728697653014,-500.0,0.00055318,120]
[340155182,1728697653037,-500.0,0.00055318,120]
[340155183,1728697653060,-500.0,0.00055318,120]
[340155184,1728697653082,-500.0,0.00055318,120]
[340155185,1728697653103,-500.0,0.00055318,120]
[340155186,1728697653125,-500.0,0.00055318,120]
[340155188,1728697653147,-500.0,0.00055318,120]
[340155189,1728697653170,-500.0,0.00055318,120]
[340155190,1728697653191,-500.0,0.00055318,120]
[340155191,1728697653213,-318.17374609,0.00055318,120]
[340155192,1728697653236,-500.0,0.00055318,120]
[340155193,1728697653263,-500.0,0.00055318,120]
[340155194,1728697653285,-500.0,0.00055318,120]
[340155195,1728697653307,-500.0,0.00055318,120]
[340155196,1728697653328,-500.0,0.00055318,120]
[340155197,1728697653351,-500.0,0.00055318,120]
[340155198,1728697653372,-500.0,0.00055318,120]
[340155199,1728697653394,-500.0,0.00055318,120]
[340155200,1728697653415,-570.22051354,0.00055318,120]
[340155201,1728697653437,-500.0,0.00055318,120]
[340155202,1728697653460,-500.0,0.00055318,120]
[340155203,1728697653485,-500.0,0.00055318,120]
[340155204,1728697653509,-500.0,0.00055318,120]
[340155205,1728697653533,-500.0,0.00055318,120]
[340155206,1728697653554,-500.0,0.00055318,120]
[340155207,1728697653577,-500.0,0.00055318,120]
[340155208,1728697653601,-500.0,0.00055318,120]
[340155209,1728697653627,-500.0,0.00055318,120]
[340155210,1728697653654,-500.0,0.00055318,120]
[340155211,1728697653677,-500.0,0.00055318,120]
[340155212,1728697653700,-500.0,0.00055318,120]
[340155213,1728697653726,-500.0,0.00055318,120]
[340155214,1728697653747,-10739.34847595,0.0005532,120]
[340155215,1728697653768,-161.882352,0.00056199,2]
[340155216,1728697653791,-348.977017,0.000565,31]
[340155217,1728697653812,-500.0,0.00056926,120]
[340155218,1728697653834,-511.3875,0.00057534,120]
[340155219,1728697653855,-500.0,0.00057919,7]
[340155220,1728697653881,-501.58103436,0.00057919,15]
[340155221,1728697653902,-518.30391291,0.00058296,120]
[340155222,1728697653928,-408.57783296,0.00058879,30]
[340155245,1728697747116,-899.1078255,0.0004607,2]
[340155246,1728697765089,-3929.76897901,0.00052293,28]
[340155247,1728697792740,6086.03878099,0.0004287,2]
[340155248,1728697792765,18813.96121901,0.0004287,2]
[340155250,1728697823924,159.8075,0.00052054,120]
[340155290,1728697833658,158.79,0.000481,45]
[340155291,1728697833694,158.79,0.000522,51]
[340155292,1728697833730,158.79,0.000522,51]
[340155300,1728697839485,-150.0,0.00040934,14]
[340155301,1728697839496,-267.37847719,0.00040934,14]
[340155302,1728697840326,-25.28152281,0.00040934,14]
[340155303,1728697840336,-307.10721774,0.00040934,2]
[340155304,1728697840346,-319.615,0.00054794,120]
[340155305,1728697840355,-11715.77801513,0.00055069,120]
[340155308,1728697840965,-2456.79152136,0.00055069,120]
[340155310,1728697840975,-679.30106652,0.00055319,120]
[340155312,1728697840987,-158.79,0.000564,57]
[340155314,1728697840998,-158.79,0.000564,57]
[340155316,1728697841009,-479.4225,0.00057534,120]
[340155318,1728697841019,-2139.17424,0.00057999,30]
[340155320,1728697841029,-5008.42,0.00058,30]
[340155322,1728697841039,-14172.56953645,0.0005803,120]
[340155325,1728697841051,-232.95608328,0.0005803,120]
[340155327,1728697841061,-6811.8789566,0.00058642,120]
[340155329,1728697841074,-918.45732984,0.0005879,2]
[340155331,1728697841083,-918.45732981,0.00058793,2]
[340155333,1728697841093,-918.45732981,0.00058795,2]
[340155335,1728697841104,-918.45732981,0.00058798,2]
[340155337,1728697841113,-918.45732981,0.000588,2]
[340155339,1728697841125,-179.51,0.0005886,30]
[340155342,1728697841137,-712.33,0.0005886,30]
[340155344,1728697841152,-500.0,0.00058869,120]
[340155347,1728697841164,-396.89486235,0.00058869,120]
[340155349,1728697841175,-500.0,0.00058869,120]
[340155351,1728697841188,-500.0,0.00058869,120]
[340155353,1728697841198,-590.90819401,0.00058869,120]
[340155356,1728697841209,-500.0,0.00058869,120]
[340155358,1728697841220,-257.02205136,0.00058869,120]
[340155359,1728697841230,-64080.7153984,0.0005887,9]
[340155360,1728697841240,-18482.6090394,0.00058879,9]
[340155361,1728697841250,-428.13365232,0.00058879,120]
[340155362,1728697841260,-396.68236806,0.00058879,120]
[340155363,1728697841270,-403.86450012,0.00058879,120]
[340155364,1728697841283,-173.08958528,0.00058879,31]
[340155365,1728697841295,-55447.8271183,0.0005888,9]
[340155366,1728697841305,-64080.7153984,0.0005888,9]
[340155367,1728697841318,-3000.0,0.00058889,120]
[340155368,1728697841328,-3000.0,0.00058889,120]
[340155369,1728697841338,-3000.0,0.00058889,120]
[340155370,1728697841347,-1091.7633,0.00058889,120]
[340155371,1728697841356,-36965.2180789,0.0005889,9]
[340155372,1728697841366,-128161.430797,0.0005889,9]
[340155373,1728697841375,-50000.0,0.000589,30]
[340155374,1728697841387,-49355.06,0.000589,30]
[340155375,1728697841397,-592.03536523,0.000589,2]
[340155376,1728697841406,-64080.7153984,0.0005897,9]
[340155377,1728697841415,-500.0,0.00058973,5]
[340155378,1728697841425,-500.0,0.00058973,7]
[340155379,1728697841434,-500.0,0.00058973,15]
[340155380,1728697841443,-243.49185191,0.00058973,7]
[340155381,1728697841452,-29854.79263082,0.0005898,9]
[340155389,1728697844848,10000.0,0.00042,2]
[340155395,1728697847239,-24.42681708,0.00054795,120]
[340155396,1728697847538,-29.89094518,0.00054795,120]
[340155397,1728697869682,163.199999,0.00044658,2]
[340155398,1728697869890,163.199999,0.00049517,2]
[340155399,1728697870788,10000.0,0.00042,2]
[340155400,1728697910929,10000.0,0.00042,2]
[340155402,1728697930901,10000.0,0.00042,2]
[340155403,1728697947433,552.41712036,0.00047,2]
[340155404,1728697951327,2677.99602,0.00042,2]
[340155405,1728697951359,7322.00398,0.00042,2]
[340155406,1728697968271,10000.0,0.00042,2]
[340155407,1728697983673,1586.57614485,0.00042,2]
[340155408,1728698011157,1420.077795,0.00040645,2]
[340155409,1728698015634,10000.0,0.00041,2]
[340155410,1728698026391,10000.0,0.00041,2]
[340155411,1728698050386,3579.922205,0.00041,2]
[340155412,1728698063513,171.065687,0.00026986,2]
[340155413,1728698063580,4826.0,0.0004,2]
[340155415,1728698216865,150.0,0.0004,2]
[340155417,1728698353059,157.894737,0.00039289,2]
[340155418,1728698353306,157.894737,0.00039403,2]
[340155419,1728698353521,157.894737,0.00039517,2]
[340155420,1728698353720,157.894737,0.0003963,2]
[340155421,1728698354075,157.894737,0.00039744,2]
[340155422,1728698354297,157.894737,0.00039858,2]
[340155423,1728698354508,157.894737,0.00039972,2]
[340155424,1728698370364,757.0860015,0.00039282,2]
[340155425,1728698383915,17990.5851525,0.00039282,2]
[340155427,1728698412409,211.23778291,0.00039,120]
[340155436,1728698594733,171.065687,0.00026986,2]
[340155437,1728698628212,946.71853,0.00037394,2]
[340155438,1728698628632,946.71853,0.00038079,2]
[340155439,1728698628961,946.71853,0.00038764,2]
[340155444,1728698736736,380.0,0.00037474,2]
[340155445,1728698759405,855.9815823,0.00037474,2]
[340155447,1728698816463,432.0,0.00039,2]
[340155448,1728698826164,-400.0,0.00039281,30]
[340155449,1728698826196,-400.0,0.00039281,5]
[340155450,1728698826227,-6909.4148475,0.00039282,2]
[340155451,1728698826250,-427.0,0.00039985,2]
[340155452,1728698826280,-2911.99381273,0.00039985,120]
[340155453,1728698826316,-631.5536466,0.00039985,120]
[340155454,1728698833114,-4472.11488694,0.00039985,120]
[340155455,1728698840104,-8732.06434152,0.00039985,120]
[340155456,1728698840131,-157.894737,0.00040085,2]
[340155457,1728698840157,-157.894737,0.00040199,2]
[340155458,1728698840187,-157.894737,0.00040313,2]
[340155459,1728698840214,-157.894737,0.00040427,2]
[340155460,1728698840242,-157.894737,0.0004054,2]
[340155461,1728698840269,-157.894737,0.00040654,2]
[340155462,1728698840297,-157.894737,0.00040768,2]
[340155463,1728698840324,-157.894737,0.00040882,2]
[340155464,1728698840348,-3521.69243995,0.00040968,28]
[340155465,1728698840375,-157.894737,0.00040995,2]
[340155466,1728698840398,-1392.8386622,0.00041068,2]
[340155467,1728698849137,-555.3048272,0.00041068,2]
[340155468,1728698924571,3000.0,0.00038438,2]
[340155469,1728698952100,-157.894737,0.0003907,2]
[340155470,1728698952128,-400.0,0.00039089,30]
[340155471,1728698952151,-400.0,0.00039089,5]
[340155472,1728698952172,-14919.1048272,0.0003909,2]
[340155473,1728698952193,-157.894737,0.00040088,2]
[340155474,1728698952322,-151.13337463,0.00041068,30]
[340155475,1728698952346,-157.894737,0.00041106,2]
[340155476,1728698952368,-300.0,0.00041734,5]
[340155477,1728698952391,-163.832,0.00042015,63]
[340155478,1728698952416,-468.0,0.00042998,30]
[340155479,1728698952439,-704.17957974,0.00044,2]
[340155480,1728698952463,-253.12,0.00044658,2]
[340155481,1728698952486,-3521.69243991,0.00045051,28]
[340155482,1728698952509,-1008.1970004,0.00046711,7]
[340155483,1728698952531,-500.83348103,0.000468,7]
[340155484,1728698952556,-169.54753914,0.00047331,2]
[340155485,1728698952586,-1024.8632795,0.00047431,2]
[340155486,1728698953107,-3521.69243991,0.00049134,28]
[340155487,1728698953130,-253.12,0.00049517,2]
[340155488,1728698953153,-269.08194861,0.000498,30]
[340155489,1728698953178,-1024.86327946,0.00050238,2]
[340155490,1728698953202,-249.0,0.0005095,120]
[340155491,1728698953223,-169.54753912,0.00051287,2]
[340155492,1728698953245,-1000.0,0.00052,120]
[340155493,1728698953267,-153.98,0.00052054,120]
[340155494,1728698959093,-1024.86327946,0.00053045,2]
[340155495,1728698959116,-679.30106652,0.00053184,120]
[340155496,1728698959139,-3521.69243991,0.00053217,28]
[340155497,1728698959161,-163.3483933,0.00053973,30]
[340155498,1728698959187,-210.0488919,0.00053973,30]
[340155499,1728698959208,-210.0488919,0.00053973,30]
[340155500,1728698959230,-210.0488919,0.00053973,30]
[340155501,1728698986210,172.192,0.00044658,2]
[340155502,1728698986454,172.192,0.00049517,2]
[340155503,1728698998096,32275.72790822,0.00051561,61]
[340155504,1728699017891,3413.33293189,0.00054276,120]
[340155505,1728699017913,8629.20645891,0.00054276,120]
[340155506,1728699022571,186.19705132,0.00051561,120]
[340155507,1728699022670,186.19705132,0.00051561,120]
[340155508,1728699022751,186.19705132,0.00051561,120]
[340155526,1728699037126,158.82,0.000484,45]
[340155527,1728699037187,158.82,0.000524,51]
[340155528,1728699037267,158.82,0.000524,51]
[340155542,1728699038360,-70.1726274,0.00040936,43]
[340155554,1728699040252,-2929.8273726,0.00040936,43]
[340155555,1728699040262,-1847.00026372,0.00054276,120]
[340155556,1728699040272,-253.12,0.00054376,2]
[340155557,1728699040281,-172.192,0.00054376,2]
[340155558,1728699040291,-409.9453118,0.00054683,2]
[340155559,1728699040302,-409.94531178,0.00054754,2]
[340155560,1728699040312,-2139.17424,0.00054762,30]
[340155561,1728699040322,-894.24,0.00054764,30]
[340155562,1728699040332,-745.2,0.00054764,30]
[340155563,1728699040342,-621.0,0.00054764,30]
[340155564,1728699040351,-517.5,0.00054764,30]
[340155565,1728699040361,-431.25,0.00054764,30]
[340155566,1728699040371,-359.37,0.00054764,30]
[340155567,1728699040382,-299.48,0.00054764,30]
[340155568,1728699040391,-249.56,0.00054764,30]
[340155569,1728699040401,-207.97,0.00054764,30]
[340155570,1728699040410,-173.31,0.00054764,30]
[340155571,1728699040419,-500.0,0.00054773,120]
[340155572,1728699040429,-368.70030854,0.00054773,120]
[340155573,1728699040438,-396.89486235,0.00054773,120]
[340155574,1728699040448,-500.0,0.00054773,120]
[340155575,1728699040458,-500.0,0.00054773,120]
[340155576,1728699040467,-500.0,0.00054773,120]
[340155577,1728699040477,-500.0,0.00054773,120]
[340155578,1728699040487,-500.0,0.00054773,120]
[340155579,1728699040496,-500.0,0.00054773,120]
[340155580,1728699040506,-500.0,0.00054773,120]
[340155581,1728699040515,-500.0,0.00054773,120]
[340155582,1728699040525,-500.0,0.00054773,120]
[340155583,1728699040650,-452.77631977,0.00054773,120]
[340155584,1728699040661,-500.0,0.00054773,120]
[340155585,1728699040671,-500.0,0.00054773,120]
[340155586,1728699040681,-500.0,0.00054773,120]
[340155587,1728699040690,-500.0,0.00054773,120]
[340155588,1728699040699,-500.0,0.00054773,120]
[340155589,1728699040708,-500.0,0.00054773,120]
[340155590,1728699040718,-500.0,0.00054773,120]
[340155591,1728699040726,-500.0,0.00054773,120]
[340155592,1728699040736,-311.60873556,0.00054773,120]
[340155593,1728699040746,-500.0,0.00054773,120]
[340155594,1728699040755,-500.0,0.00054773,120]
[340155595,1728699040762,-192.75610326,0.00054773,120]
[340155596,1728699040772,-500.0,0.00054773,120]
[340155597,1728699040781,-500.0,0.00054773,120]
[340155598,1728699040791,-500.0,0.00054773,120]
[340155599,1728699040800,-500.0,0.00054773,120]
[340155600,1728699040810,-500.0,0.00054773,120]
[340155601,1728699040819,-500.0,0.00054773,120]
[340155602,1728699040829,-500.0,0.00054773,120]
[340155603,1728699040838,-500.0,0.00054773,120]
[340155604,1728699040848,-500.0,0.00054773,120]
[340155605,1728699040858,-500.0,0.00054773,120]
[340155606,1728699040867,-500.0,0.00054773,120]
[340155607,1728699040876,-500.0,0.00054773,120]
[340155608,1728699040885,-500.0,0.00054773,120]
[340155609,1728699040895,-500.0,0.00054773,120]
[340155610,1728699040904,-500.0,0.00054773,120]
[340155611,1728699040913,-500.0,0.00054773,120]
[340155612,1728699040922,-500.0,0.00054773,120]
[340155613,1728699040932,-500.0,0.00054773,120]
[340155614,1728699040944,-18677.1536094,0.00054774,8]
[340155615,1728699040954,-54668.8603243,0.00054774,8]
[340155616,1728699040963,-428.13365232,0.00054783,120]
[340155617,1728699040973,-403.86450012,0.00054783,120]
[340155618,1728699040984,-173.08958528,0.00054783,31]
[340155619,1728699040996,-396.68236806,0.00054783,120]
[340155620,1728699041007,-18677.1536094,0.00054784,8]
[340155621,1728699041018,-54668.8603243,0.00054784,8]
[340155622,1728699041029,-500.0,0.00054794,120]
[340155623,1728699041039,-522.92497424,0.00054794,120]
[340155624,1728699041050,-200.0,0.00054794,120]
[340155625,1728699041062,-510.85165563,0.00054794,120]
[340155626,1728699041073,-500.0,0.00054794,120]
[340155627,1728699041084,-502.20084856,0.00054794,120]
[340155628,1728699041095,-512.74402903,0.00054794,120]
[340155629,1728699041105,-159.40552422,0.00054794,120]
[340155630,1728699041115,-163.71098432,0.00054794,120]
[340155631,1728699041126,-303.03891574,0.00054794,120]
[340155632,1728699041136,-500.0,0.00054794,120]
[340155633,1728699041145,-307.96,0.00054794,120]
[340155634,1728699041155,-500.0,0.00054794,120]
[340155635,1728699041165,-171.98596227,0.00054794,120]
[340155636,1728699041175,-194.03640379,0.00054794,120]
[340155637,1728699041184,-506.89527578,0.00054794,120]
[340155638,1728699041194,-155.41723629,0.00054794,120]
[340155639,1728699041203,-500.0,0.00054794,120]
[340155640,1728699041213,-500.0,0.00054794,120]
[340155641,1728699041223,-500.0,0.00054794,120]
[340155642,1728699041233,-500.0,0.00054794,120]
[340155643,1728699041245,-500.0,0.00054794,120]
[340155644,1728699041255,-500.0,0.00054794,120]
[340155645,1728699041267,-500.0,0.00054794,120]
[340155646,1728699041277,-500.0,0.00054794,120]
[340155647,1728699041286,-500.0,0.00054794,120]
[340155648,1728699041297,-500.0,0.00054794,120]
[340155649,1728699041307,-500.0,0.00054794,120]
[340155650,1728699041317,-500.0,0.00054794,120]
[340155651,1728699041328,-500.0,0.00054794,120]
[340155652,1728699041340,-500.0,0.00054794,120]
[340155653,1728699041352,-500.0,0.00054794,120]
[340155654,1728699041364,-500.0,0.00054794,120]
[340155655,1728699041373,-500.0,0.00054794,120]
[340155656,1728699041383,-500.0,0.00054794,120]
[340155657,1728699041393,-271.33919826,0.00054794,120]
[340155658,1728699041403,-522.85827017,0.00054794,120]
[340155659,1728699041414,-218.71987994,0.00054794,120]
[340155660,1728699041424,-171.80452907,0.00054794,120]
[340155661,1728699041437,-500.0,0.00054794,120]
[340155662,1728699041449,-508.75522772,0.00054794,120]
[340155663,1728699041462,-500.0,0.00054794,120]
[340155664,1728699041473,-209.69484128,0.00054794,120]
[340155665,1728699041484,-3000.0,0.00054794,120]
[340155666,1728699041494,-3000.0,0.00054794,120]
[340155667,1728699041505,-3000.0,0.00054794,120]
[340155668,1728699041516,-1091.7633,0.00054794,120]
[340155669,1728699041528,-508.25186105,0.00054794,120]
[340155670,1728699041549,-500.0,0.00054794,120]
[340155671,1728699041562,-2495.38,0.00054794,120]
[340155672,1728699041576,-213.71716719,0.00054794,120]
[340155673,1728699041588,-1277.1,0.00054794,120]
[340155674,1728699041599,-591.7864094,0.00054794,120]
[340155675,1728699041610,-176.39995046,0.00054794,120]
[340155676,1728699041623,-526.97189405,0.00054794,120]
[340155677,1728699041634,-500.0,0.00054794,120]
[340155678,1728699041647,-174.14792394,0.00054794,30]
[340155679,1728699041660,-535.81223794,0.00054794,120]
[340155680,1728699041672,-632.29700269,0.00054794,120]
[340155681,1728699041683,-29947.46,0.00054794,18]
[340155682,1728699041695,-174.21987614,0.00054794,120]
[340155683,1728699041707,-500.0,0.00054794,30]
[340155684,1728699041718,-536.68375015,0.00054794,120]
[340155685,1728699041730,-500.0,0.00054794,120]
[340155686,1728699041742,-645.76048647,0.00054794,120]
[340155687,1728699041752,-501.38509926,0.00054794,2]
[340155688,1728699041763,-303.64236383,0.00054794,120]
[340155689,1728699041774,-636.45234818,0.00054794,120]
[340155690,1728699041784,-522.96890023,0.00054794,120]
[340155691,1728699041796,-490.83363589,0.00054794,120]
[340155692,1728699041806,-500.0,0.00054794,120]
[340155693,1728699041818,-500.0,0.00054794,120]
[340155694,1728699041829,-182.85536201,0.00054794,120]
[340155695,1728699041841,-631.87488063,0.00054794,120]
[340155696,1728699041853,-409.94531178,0.00054826,2]
[340155697,1728699041863,-409.94531178,0.00054897,2]
[340155698,1728699041874,-500.0,0.00054929,5]
[340155699,1728699041885,-243.49185191,0.00054929,7]
[340155700,1728699041894,-409.94531178,0.00054968,2]
[340155701,1728699041904,-227.952904,0.00055,120]
[340155702,1728699041914,-1000.0,0.00055,120]
[340155703,1728699041924,-201.0,0.00055,120]
[340155704,1728699041934,-183.0,0.00055,120]
[340155705,1728699041944,-18677.1536094,0.00055058,8]
[340155706,1728699041954,-54668.8603243,0.00055058,8]
[340155707,1728699041964,-500.0,0.00055068,120]
[340155708,1728699041973,-500.0,0.00055068,120]
[340155709,1728699041983,-212.45477652,0.00055068,120]
[340155710,1728699041993,-411.5062601,0.00055068,120]
[340155711,1728699042003,-166.37881126,0.00055068,120]
[340155712,1728699042013,-500.0,0.00055068,120]
[340155713,1728699042024,-500.0,0.00055068,120]
[340155714,1728699042033,-500.0,0.00055068,120]
[340155715,1728699042043,-2495.38,0.00055068,120]
[340155716,1728699042054,-1277.1,0.00055068,120]
[340155717,1728699042064,-500.0,0.00055068,120]
[340155718,1728699042073,-29947.46,0.00055068,18]
[340155719,1728699042084,-514.26073765,0.00055068,30]
[340155720,1728699042094,-500.0,0.00055068,120]
[340155721,1728699042103,-190.54193204,0.00055068,120]
[340155722,1728699042112,-309.83893974,0.00055068,120]
[340155723,1728699042122,-354.75601334,0.00055142,15]
[340155724,1728699042131,-500.0,0.00055142,7]
[340155725,1728699042142,-500.0,0.00055142,15]
[340155726,1728699042151,-500.0,0.00055342,120]
[340155727,1728699042161,-500.0,0.00055342,120]
[340155728,1728699042170,-154.58376402,0.00055342,120]
[340155729,1728699042179,-500.0,0.00055342,120]
[340155730,1728699042189,-546.06488355,0.00055342,120]
[340155731,1728699042199,-2495.38,0.00055342,120]
[340155732,1728699042212,-1277.1,0.00055342,120]
[340155733,1728699042222,-500.0,0.00055342,120]
[340155734,1728699042233,-29947.46,0.00055342,18]
[340155735,1728699042243,-500.0,0.00055342,120]
[340155736,1728699042253,-505.25775591,0.00055456,15]
[340155737,1728699042263,-268.29361,0.00055463,120]
[340155738,1728699042273,-151.0,0.00055463,120]
[340155739,1728699042283,-152.998486,0.00055463,120]